Body Name,ONS SNAC ID,Pay Date,Transaction No,Amount �,Supplier Name,Company Registration No,Department,Account Name,CIPFA Service Reporting
Swale Borough Council,29UM,07/09/2016,1144489,3647.70,ACORN MAINTENANCE SERVICES,3546898                  ,HOUSING SERVICES,Housing Renovation Grants,Not used in this Structure
Swale Borough Council,29UM,07/09/2016,1144385,12881.69,APCOA PARKING (UK) LTD,2572947                  ,CAR PARKS,Private Contractors,Highway and Transport Services
Swale Borough Council,29UM,07/09/2016,1144385,19322.54,APCOA PARKING (UK) LTD,2572947                  ,CAR PARKS,Private Contractors,Highway and Transport Services
Swale Borough Council,29UM,07/09/2016,1144480,1500.00,ASSESSMENT SERVICES LTD,2777374                  ,COMMISSIONING & CUSTOMER CONTACT,Performance Fund Expenditure,Ledger/Suspense Codes
Swale Borough Council,29UM,07/09/2016,1144480,300.00,ASSESSMENT SERVICES LTD,2777374                  ,COMMISSIONING & CUSTOMER CONTACT,Performance Fund Expenditure,Ledger/Suspense Codes
Swale Borough Council,29UM,07/09/2016,1144279,410.86,B W MAY AND SON LTD,1016572                  ,PLANNING SERVICES,Private Contractors - CIS,Planning and Development Services
Swale Borough Council,29UM,07/09/2016,1144363,4950.40,BBM SUSTAINABLE DESIGN LTD,4597504                  ,COMMUNITY SAFETY,Capitalised Fees And Charges,Not used in this Structure
Swale Borough Council,29UM,07/09/2016,1143995,306.93,BLENWOOD LTD,4383277                  ,HOUSING SERVICES,Maintenance - Grounds,Housing
Swale Borough Council,29UM,07/09/2016,1144382,414.07,BLENWOOD LTD,4383277                  ,CONTRACT & PROCUREMENT,Non-Planned Building Maintenance,Environmental and Regulatory Services
Swale Borough Council,29UM,07/09/2016,1144375,2228.33,CHILDREN AND FAMILIES LTD,                         ,COMMUNITY SAFETY,Fees And Services,Planning and Development Services
Swale Borough Council,29UM,07/09/2016,1144406,375.00,CHURCH JESUS CHRIST LATTER DAY ST,                         ,PROPERTY SERVICES,Rent,Corporate & Democratic Core
Swale Borough Council,29UM,07/09/2016,1144202,12278.13,COMENSURA LTD,04085767                 ,HUMAN RESOURCES,Agency/Contract Staff,Internal Trading Cost Centres
Swale Borough Council,29UM,07/09/2016,1144348,3821.74,COMENSURA LTD,04085767                 ,HUMAN RESOURCES,Agency/Contract Staff,Internal Trading Cost Centres
Swale Borough Council,29UM,07/09/2016,1144397,2250.00,DAC BEACHCROFT LLP,04218278                 ,MKIP LEGAL SERVICES,Legal Fees,Internal Trading Cost Centres
Swale Borough Council,29UM,07/09/2016,1143943,410.72,EDF ENERGY,2228297                  ,CONTRACT & PROCUREMENT,Electricity,Environmental and Regulatory Services
Swale Borough Council,29UM,07/09/2016,1143970,273.25,EDF ENERGY,2228297                  ,CONTRACT & PROCUREMENT,Electricity,Environmental and Regulatory Services
Swale Borough Council,29UM,07/09/2016,1144405,1718.75,GRAHAM BOULDEN & COMPANY,                         ,CAR PARKS,Rent,Highway and Transport Services
Swale Borough Council,29UM,07/09/2016,1144394,746.85,HAYS ACCOUNTANCY PERSONNEL,975677                   ,EMERGENCY PLANNING,Other Local Authorities,Central Services to the Public
Swale Borough Council,29UM,07/09/2016,1144272,253.00,HUBBARD & HOUGHTON CONSTRUCTION LTD,                         ,HOUSING SERVICES,Staying Put small repairs (contractors),Housing
Swale Borough Council,29UM,07/09/2016,1144273,367.00,HUBBARD & HOUGHTON CONSTRUCTION LTD,                         ,HOUSING SERVICES,Staying Put small repairs (contractors),Housing
Swale Borough Council,29UM,07/09/2016,1144484,2422.98,HUBBARD & HOUGHTON CONSTRUCTION LTD,                         ,HOUSING SERVICES,Housing Renovation Grants,Not used in this Structure
Swale Borough Council,29UM,07/09/2016,1144485,1347.30,HUBBARD & HOUGHTON CONSTRUCTION LTD,                         ,HOUSING SERVICES,Housing Renovation Grants,Not used in this Structure
Swale Borough Council,29UM,07/09/2016,1144315,432.00,INFORM CPI LTD,                         ,REVENUE SERVICES,NNDR Additional Rateable Values,Central Services to the Public
Swale Borough Council,29UM,07/09/2016,1144384,1550.00,JASMIL KENNELS,05595524                 ,ENVIRONMENTAL RESPONSE TEAM,Kennelling Of Dogs,Environmental and Regulatory Services
Swale Borough Council,29UM,07/09/2016,1144384,-165.00,JASMIL KENNELS,05595524                 ,ENVIRONMENTAL RESPONSE TEAM,Income collected by Dog Kennels,Environmental and Regulatory Services
Swale Borough Council,29UM,07/09/2016,1144346,41000.00,KENT COUNTY COUNCIL,                         ,FINANCIAL SERVICES,Agency/Contract Staff,Internal Trading Cost Centres
Swale Borough Council,29UM,07/09/2016,1144176,52022.00,KENT COUNTY COUNCIL (H+T) INCOME,                         ,PLANNING SERVICES,Payments in Year,Ledger/Suspense Codes
Swale Borough Council,29UM,07/09/2016,1144072,20891.00,KGB CLEANING & SUPPORT SERVICES LTD,                         ,CONTRACT & PROCUREMENT,Private Contractors,Environmental and Regulatory Services
Swale Borough Council,29UM,07/09/2016,1144519,180.00,LAND REGISTRY - (DT),                         ,PROPERTY SERVICES,Fees - Land Registry,Trading Undertaking
Swale Borough Council,29UM,07/09/2016,1144519,229.00,LAND REGISTRY - (DT),                         ,REVENUE SERVICES,Fees - Land Registry,Central Services to the Public
Swale Borough Council,29UM,07/09/2016,1144519,3.00,LAND REGISTRY - (DT),                         ,REVENUE SERVICES,Fees - Land Registry,Central Services to the Public
Swale Borough Council,29UM,07/09/2016,1144519,178.00,LAND REGISTRY - (DT),                         ,PLANNING SERVICES,Fees - Land Registry,Planning and Development Services
Swale Borough Council,29UM,07/09/2016,1144519,6.00,LAND REGISTRY - (DT),                         ,PLANNING SERVICES,Fees - Land Registry,Planning and Development Services
Swale Borough Council,29UM,07/09/2016,1144519,21.00,LAND REGISTRY - (DT),                         ,ECONOMIC DEVELOPMENT,Fees - Land Registry,Planning and Development Services
Swale Borough Council,29UM,07/09/2016,1144519,6.00,LAND REGISTRY - (DT),                         ,SERVICE DELIVERY,Fees - Land Registry,Cultural and Related Services
Swale Borough Council,29UM,07/09/2016,1144519,198.00,LAND REGISTRY - (DT),                         ,ENVIRONMENTAL RESPONSE TEAM,Fees - Land Registry,Internal Trading Cost Centres
Swale Borough Council,29UM,07/09/2016,1144519,18.00,LAND REGISTRY - (DT),                         ,LEISURE & OPEN SPACES,Fees - Land Registry,Internal Trading Cost Centres
Swale Borough Council,29UM,07/09/2016,1144519,84.00,LAND REGISTRY - (DT),                         ,PLANNING SERVICES,Fees - Land Registry,Internal Trading Cost Centres
Swale Borough Council,29UM,07/09/2016,1144519,83.00,LAND REGISTRY - (DT),                         ,LEISURE & OPEN SPACES,Fees - Land Registry,Cultural and Related Services
Swale Borough Council,29UM,07/09/2016,1144519,6.00,LAND REGISTRY - (DT),                         ,LEISURE & OPEN SPACES,Fees - Land Registry,Cultural and Related Services
Swale Borough Council,29UM,07/09/2016,1144519,42.00,LAND REGISTRY - (DT),                         ,HOUSING SERVICES,Fees - Land Registry,Housing
Swale Borough Council,29UM,07/09/2016,1144519,124.00,LAND REGISTRY - (DT),                         ,HOUSING SERVICES,Fees - Land Registry,Housing
Swale Borough Council,29UM,07/09/2016,1143121,1570.00,MAGEES GUESTHOUSE,                         ,HOUSING SERVICES,B & B - Landlords Payments,Housing
Swale Borough Council,29UM,07/09/2016,1144062,70155.88,MAIDSTONE BOROUGH COUNCIL,                         ,CONTRACT & PROCUREMENT,Private Contractors,Environmental and Regulatory Services
Swale Borough Council,29UM,07/09/2016,1144062,192849.35,MAIDSTONE BOROUGH COUNCIL,                         ,CONTRACT & PROCUREMENT,Private Contractors,Environmental and Regulatory Services
Swale Borough Council,29UM,07/09/2016,1144436,62024.63,MAIDSTONE BOROUGH COUNCIL,                         ,HUMAN RESOURCES,MKS Charges for HR Service,Internal Trading Cost Centres
Swale Borough Council,29UM,07/09/2016,1144292,1540.00,MATCHTECH,4426336                  ,PLANNING SERVICES,Agency/Contract Staff,Internal Trading Cost Centres
Swale Borough Council,29UM,07/09/2016,1144349,2450.00,MELENGA BUSINESS SOLUTIONS LTD,06148446                 ,FINANCIAL SERVICES,Agency/Contract Staff,Internal Trading Cost Centres
Swale Borough Council,29UM,07/09/2016,1144319,585.00,METRIC GROUP LTD,2560839                  ,CAR PARKS,Fees - Licence,Highway and Transport Services
Swale Borough Council,29UM,07/09/2016,1144344,415.08,METRIC GROUP LTD,2560839                  ,CAR PARKS,Equipment Maintenance,Highway and Transport Services
Swale Borough Council,29UM,07/09/2016,1144410,1400.00,REDACTED PERSONAL INFORMATION,                         ,PROPERTY SERVICES,Legal Fees,Trading Undertaking
Swale Borough Council,29UM,07/09/2016,1144410,280.00,REDACTED PERSONAL INFORMATION,                         ,PROPERTY SERVICES,Legal Fees,Trading Undertaking
Swale Borough Council,29UM,07/09/2016,1144329,300.00,REDACTED PERSONAL INFORMATION,                         ,ENVIRONMENTAL RESPONSE TEAM,Legal Fees,Internal Trading Cost Centres
Swale Borough Council,29UM,07/09/2016,1144329,60.00,REDACTED PERSONAL INFORMATION,                         ,ENVIRONMENTAL RESPONSE TEAM,Legal Fees,Internal Trading Cost Centres
Swale Borough Council,29UM,07/09/2016,1144399,550.00,REDACTED PERSONAL INFORMATION,                         ,ENVIRONMENTAL RESPONSE TEAM,Legal Fees,Internal Trading Cost Centres
Swale Borough Council,29UM,07/09/2016,1144399,110.00,REDACTED PERSONAL INFORMATION,                         ,ENVIRONMENTAL RESPONSE TEAM,Legal Fees,Internal Trading Cost Centres
Swale Borough Council,29UM,07/09/2016,1144459,470.06,NPOWER,3432100                  ,COMMUNITY SAFETY,Gas,Cultural and Related Services
Swale Borough Council,29UM,07/09/2016,1144317,243.36,PHS GROUP LTD,770813                   ,PROPERTY SERVICES,Service Contracts,Corporate & Democratic Core
Swale Borough Council,29UM,07/09/2016,1144317,78.00,PHS GROUP LTD,770813                   ,PROPERTY SERVICES,Service Contracts,Corporate & Democratic Core
Swale Borough Council,29UM,07/09/2016,1144317,25.35,PHS GROUP LTD,770813                   ,PROPERTY SERVICES,Service Contracts,Corporate & Democratic Core
Swale Borough Council,29UM,07/09/2016,1144317,192.40,PHS GROUP LTD,770813                   ,PROPERTY SERVICES,Service Contracts,Corporate & Democratic Core
Swale Borough Council,29UM,07/09/2016,1144310,785.00,REARDON PROPERTIES,                         ,HOUSING SERVICES,B & B - Landlords Payments,Housing
Swale Borough Council,29UM,07/09/2016,1144311,490.00,REARDON PROPERTIES,                         ,HOUSING SERVICES,B & B - Landlords Payments,Housing
Swale Borough Council,29UM,07/09/2016,1144404,380.00,RED BULLET,                         ,ECONOMIC DEVELOPMENT,Regeneration Fund Expenditure,Ledger/Suspense Codes
Swale Borough Council,29UM,07/09/2016,1144298,616.18,ROYAL MAIL GROUP LTD,4138203                  ,DEMOCRATIC & ELECTORAL SERVICES,Postage,Ledger/Suspense Codes
Swale Borough Council,29UM,07/09/2016,1144361,2232.50,REDACTED PERSONAL INFORMATION,                         ,MKIP LEGAL SERVICES,Agency/Contract Staff,Internal Trading Cost Centres
Swale Borough Council,29UM,07/09/2016,1143617,15000.00,SEVENOAKS DISTRICT COUNCIL,                         ,CONTRACT & PROCUREMENT,Fees And Services,Environmental and Regulatory Services
Swale Borough Council,29UM,07/09/2016,1144478,250.00,SHARPE PRITCHARD,                         ,PLANNING SERVICES,Legal Fees,Planning and Development Services
Swale Borough Council,29UM,07/09/2016,1144389,900.00,SHEPPEY CATHOLIC CHURCH,                         ,COMMUNITY SAFETY,Grants & Subscriptions,Central Services to the Public
Swale Borough Council,29UM,07/09/2016,1144215,1450.00,SHEPPY GLASS CENTRE LTD,                         ,LEISURE & OPEN SPACES,Non-Planned Building Maintenance,Cultural and Related Services
Swale Borough Council,29UM,07/09/2016,1144002,1475.53,SOUTHERN WATER SERVICES LIMITED,2366670                  ,CONTRACT & PROCUREMENT,Water - Metered,Environmental and Regulatory Services
Swale Borough Council,29UM,07/09/2016,1144181,674.87,SOUTHERN WATER SERVICES LIMITED,2366670                  ,CONTRACT & PROCUREMENT,Water - Metered,Environmental and Regulatory Services
Swale Borough Council,29UM,07/09/2016,1144376,500.00,SWALE EMPLOYEES ASSOCIATION,                         ,CHIEF EXECUTIVE,Catering Provisions,Corporate & Democratic Core
Swale Borough Council,29UM,07/09/2016,1144365,980.00,SYNERGY CONSTRUCTION & PROPERTY CONSULTANTS LLP,                         ,COMMUNITY SAFETY,Capitalised Fees And Charges,Not used in this Structure
Swale Borough Council,29UM,07/09/2016,1144036,174.45,THE PERFORMING RIGHT SOCIETY,134396                   ,REVENUE SERVICES,Fees And Services,Central Services to the Public
Swale Borough Council,29UM,07/09/2016,1144036,87.23,THE PERFORMING RIGHT SOCIETY,134396                   ,DEMOCRATIC & ELECTORAL SERVICES,Fees And Services,Corporate & Democratic Core
Swale Borough Council,29UM,07/09/2016,1144036,74.77,THE PERFORMING RIGHT SOCIETY,134396                   ,HOUSING SERVICES,Fees And Services,Housing
Swale Borough Council,29UM,07/09/2016,1144036,149.53,THE PERFORMING RIGHT SOCIETY,134396                   ,REVENUE SERVICES,Fees And Services,Housing
Swale Borough Council,29UM,07/09/2016,1144036,77.73,THE PERFORMING RIGHT SOCIETY,134396                   ,CONTRACT & PROCUREMENT,Fees And Services,Internal Trading Cost Centres
Swale Borough Council,29UM,07/09/2016,1144036,20.57,THE PERFORMING RIGHT SOCIETY,134396                   ,ECONOMIC DEVELOPMENT,Fees And Services,Internal Trading Cost Centres
Swale Borough Council,29UM,07/09/2016,1144036,24.92,THE PERFORMING RIGHT SOCIETY,134396                   ,CONTRACT & PROCUREMENT,Fees And Services,Internal Trading Cost Centres
Swale Borough Council,29UM,07/09/2016,1144036,49.84,THE PERFORMING RIGHT SOCIETY,134396                   ,DIRECTOR OF CORPORATE SERVICES,Fees And Services,Environmental and Regulatory Services
Swale Borough Council,29UM,07/09/2016,1144036,10.29,THE PERFORMING RIGHT SOCIETY,134396                   ,HOUSING SERVICES,Fees And Services,Housing
Swale Borough Council,29UM,07/09/2016,1144486,1612.00,TLC STAIRLIFTS LTD,OC337646                 ,HOUSING SERVICES,Housing Renovation Grants,Not used in this Structure
Swale Borough Council,29UM,07/09/2016,1144488,9433.80,TLC STAIRLIFTS LTD,OC337646                 ,HOUSING SERVICES,Housing Renovation Grants,Not used in this Structure
Swale Borough Council,29UM,07/09/2016,1144398,1230.00,VENN GROUP LIMITED,                         ,MKIP LEGAL SERVICES,Agency/Contract Staff,Internal Trading Cost Centres
Swale Borough Council,29UM,07/09/2016,1144309,500.00,WILLOW TREE HOME SOLUTIONS LTD,                         ,HOUSING SERVICES,Staying Put small repairs (contractors),Housing
Swale Borough Council,29UM,07/09/2016,1144482,738.00,WILLOW TREE HOME SOLUTIONS LTD,                         ,HOUSING SERVICES,Housing Renovation Grants,Not used in this Structure
Swale Borough Council,29UM,07/09/2016,1144483,796.30,WILLOW TREE HOME SOLUTIONS LTD,                         ,HOUSING SERVICES,Housing Renovation Grants,Not used in this Structure
Swale Borough Council,29UM,07/09/2016,1143999,6036.00,WYG ENVIRONMENT PLANNING TRANSPORT LTD,3050297                  ,CONTRACT & PROCUREMENT,Waste and Recycling Promotion / Comm's Projects,Environmental and Regulatory Services
Swale Borough Council,29UM,14/09/2016,1144696,315.00,ACORN MAINTENANCE SERVICES,3546898                  ,HOUSING SERVICES,Housing Renovation Grants,Not used in this Structure
Swale Borough Council,29UM,14/09/2016,1144697,664.20,ACORN MAINTENANCE SERVICES,3546898                  ,HOUSING SERVICES,Housing Renovation Grants,Not used in this Structure
Swale Borough Council,29UM,14/09/2016,1144698,11655.50,ACORN MAINTENANCE SERVICES,3546898                  ,HOUSING SERVICES,Housing Renovation Grants,Not used in this Structure
Swale Borough Council,29UM,14/09/2016,1144699,4723.00,ACORN MAINTENANCE SERVICES,3546898                  ,HOUSING SERVICES,Housing Renovation Grants,Not used in this Structure
Swale Borough Council,29UM,14/09/2016,1144565,1.71,ALLSTAR BUSINESS SOLUTIONS LTD - (DT),1073098                  ,DEMOCRATIC & ELECTORAL SERVICES,Petrol/Derv & Oil,Corporate & Democratic Core
Swale Borough Council,29UM,14/09/2016,1144565,99.92,ALLSTAR BUSINESS SOLUTIONS LTD - (DT),1073098                  ,SERVICE DELIVERY,Petrol/Derv & Oil,Cultural and Related Services
Swale Borough Council,29UM,14/09/2016,1144565,186.26,ALLSTAR BUSINESS SOLUTIONS LTD - (DT),1073098                  ,ENVIRONMENTAL RESPONSE TEAM,Fuel For Contract Vehicles,Internal Trading Cost Centres
Swale Borough Council,29UM,14/09/2016,1144565,62.69,ALLSTAR BUSINESS SOLUTIONS LTD - (DT),1073098                  ,LEISURE & OPEN SPACES,Fuel For Contract Vehicles,Cultural and Related Services
Swale Borough Council,29UM,14/09/2016,1144565,1.71,ALLSTAR BUSINESS SOLUTIONS LTD - (DT),1073098                  ,ENVIRONMENTAL RESPONSE TEAM,Fuel For Contract Vehicles,Environmental and Regulatory Services
Swale Borough Council,29UM,14/09/2016,1144565,1.71,ALLSTAR BUSINESS SOLUTIONS LTD - (DT),1073098                  ,HOUSING SERVICES,Fuel For Contract Vehicles,Housing
Swale Borough Council,29UM,14/09/2016,1144438,465.00,AYS LTD,                         ,LEISURE & OPEN SPACES,Maintenance - Grounds,Environmental and Regulatory Services
Swale Borough Council,29UM,14/09/2016,1144487,1804.64,BT REDCARE,1800000                  ,COMMUNITY SAFETY,CCTV Line Rental,Environmental and Regulatory Services
Swale Borough Council,29UM,14/09/2016,1144318,666.66,CLARKES SPORTS STUDIO,                         ,LEISURE & OPEN SPACES,Grants & Subscriptions,Cultural and Related Services
Swale Borough Council,29UM,14/09/2016,1144528,5003.87,COMENSURA LTD,04085767                 ,HUMAN RESOURCES,Agency/Contract Staff,Internal Trading Cost Centres
Swale Borough Council,29UM,14/09/2016,1144451,528.00,DISCLOSURE & BARRING SERVICE (DT),                         ,SERVICE DELIVERY,Fees And Services,Environmental and Regulatory Services
Swale Borough Council,29UM,14/09/2016,1144690,980.00,DOLPHIN STAIRLIFTS (KENT),04181846                 ,HOUSING SERVICES,Housing Renovation Grants,Not used in this Structure
Swale Borough Council,29UM,14/09/2016,1144617,42500.00,"DTZ CLIENT AC TESCO STORES, THE FORUM (RENT)",                         ,CAR PARKS,Rent,Highway and Transport Services
Swale Borough Council,29UM,14/09/2016,1144617,8500.00,"DTZ CLIENT AC TESCO STORES, THE FORUM (RENT)",                         ,CAR PARKS,Rent,Highway and Transport Services
Swale Borough Council,29UM,14/09/2016,1144431,2947.84,EDEN PARK (STMS) LTD,6116389                  ,LEISURE & OPEN SPACES,Equipment Purchase,Cultural and Related Services
Swale Borough Council,29UM,14/09/2016,1144649,400.00,FAVERSHAM POOL MNGMT.COMMITTEE,                         ,COMMUNITY SAFETY,Grants & Subscriptions,Central Services to the Public
Swale Borough Council,29UM,14/09/2016,1144473,338.00,HUBBARD & HOUGHTON CONSTRUCTION LTD,                         ,HOUSING SERVICES,Staying Put small repairs (contractors),Housing
Swale Borough Council,29UM,14/09/2016,1144492,332.00,HUBBARD & HOUGHTON CONSTRUCTION LTD,                         ,HOUSING SERVICES,Staying Put small repairs (contractors),Housing
Swale Borough Council,29UM,14/09/2016,1144521,487.00,HUBBARD & HOUGHTON CONSTRUCTION LTD,                         ,HOUSING SERVICES,Staying Put small repairs (contractors),Housing
Swale Borough Council,29UM,14/09/2016,1144688,5850.00,HUBBARD & HOUGHTON CONSTRUCTION LTD,                         ,HOUSING SERVICES,Housing Renovation Grants,Not used in this Structure
Swale Borough Council,29UM,14/09/2016,1144464,630.00,HUBBUB TRADING LIMITED,08910364                 ,ENVIRONMENTAL RESPONSE TEAM,Equipment Purchase,Planning and Development Services
Swale Borough Council,29UM,14/09/2016,1144395,20000.00,KENT COUNTY COUNCIL,                         ,ICT,Computer Equipment & Materials,Internal Trading Cost Centres
Swale Borough Council,29UM,14/09/2016,1144408,274.97,KENT COUNTY COUNCIL (KCS),                         ,CAR PARKS,Computer Equipment & Materials,Highway and Transport Services
Swale Borough Council,29UM,14/09/2016,1144457,10957.60,KINGDOM SECURITY LIMITED,2795197                  ,ENVIRONMENTAL RESPONSE TEAM,Fees And Services,Planning and Development Services
Swale Borough Council,29UM,14/09/2016,1144534,708.23,LAMBERHURST ENGINEERING LTD,3595260                  ,LEISURE & OPEN SPACES,Equipment Purchase,Cultural and Related Services
Swale Borough Council,29UM,14/09/2016,1144651,1000.00,LEMAR LIMITED,04350292                 ,CAR PARKS,Maintenance - Grounds,Highway and Transport Services
Swale Borough Council,29UM,14/09/2016,1144651,300.00,LEMAR LIMITED,04350292                 ,CAR PARKS,Maintenance - Grounds,Highway and Transport Services
Swale Borough Council,29UM,14/09/2016,1144652,200.00,LEMAR LIMITED,04350292                 ,SERVICE DELIVERY,Private Contractors - CIS,Highway and Transport Services
Swale Borough Council,29UM,14/09/2016,1144652,175.00,LEMAR LIMITED,04350292                 ,SERVICE DELIVERY,Private Contractors - CIS,Highway and Transport Services
Swale Borough Council,29UM,14/09/2016,1144653,150.00,LEMAR LIMITED,04350292                 ,SERVICE DELIVERY,Private Contractors - CIS,Highway and Transport Services
Swale Borough Council,29UM,14/09/2016,1144653,150.00,LEMAR LIMITED,04350292                 ,SERVICE DELIVERY,Private Contractors - CIS,Highway and Transport Services
Swale Borough Council,29UM,14/09/2016,1144437,945.00,LUSHLAND,4289261                  ,PLANNING SERVICES,Fees And Services,Planning and Development Services
Swale Borough Council,29UM,14/09/2016,1144525,340.00,LYRECO UK LTD,                         ,PROPERTY SERVICES,Paper,Internal Trading Cost Centres
Swale Borough Council,29UM,14/09/2016,1144542,340.00,LYRECO UK LTD,                         ,PROPERTY SERVICES,Paper,Internal Trading Cost Centres
Swale Borough Council,29UM,14/09/2016,1144460,2976.00,MACDONALD & COMPANY FREELANCE LTD,3882135                  ,PLANNING SERVICES,Agency/Contract Staff,Internal Trading Cost Centres
Swale Borough Council,29UM,14/09/2016,1144066,1415.00,MAGEES GUESTHOUSE,                         ,HOUSING SERVICES,B & B - Landlords Payments,Housing
Swale Borough Council,29UM,14/09/2016,1144177,1255.00,MAGEES GUESTHOUSE,                         ,HOUSING SERVICES,B & B - Landlords Payments,Housing
Swale Borough Council,29UM,14/09/2016,1144369,760.00,MAGEES GUESTHOUSE,                         ,HOUSING SERVICES,B & B - Landlords Payments,Housing
Swale Borough Council,29UM,14/09/2016,1144117,68808.51,MAIDSTONE BOROUGH COUNCIL,                         ,CONTRACT & PROCUREMENT,Private Contractors,Environmental and Regulatory Services
Swale Borough Council,29UM,14/09/2016,1144117,768.30,MAIDSTONE BOROUGH COUNCIL,                         ,CONTRACT & PROCUREMENT,Equipment Purchase,Environmental and Regulatory Services
Swale Borough Council,29UM,14/09/2016,1144418,1452.00,MATCHTECH,4426336                  ,PLANNING SERVICES,Agency/Contract Staff,Internal Trading Cost Centres
Swale Borough Council,29UM,14/09/2016,1144583,1540.00,MATCHTECH,4426336                  ,PLANNING SERVICES,Agency/Contract Staff,Internal Trading Cost Centres
Swale Borough Council,29UM,14/09/2016,1144465,409.00,MAYLOW CONSTRUCTION LTD,                         ,LEISURE & OPEN SPACES,Maintenance - Grounds,Cultural and Related Services
Swale Borough Council,29UM,14/09/2016,1144466,1267.00,MAYLOW CONSTRUCTION LTD,                         ,LEISURE & OPEN SPACES,Maintenance - Grounds,Cultural and Related Services
Swale Borough Council,29UM,14/09/2016,1144467,844.00,MAYLOW CONSTRUCTION LTD,                         ,LEISURE & OPEN SPACES,Maintenance - Grounds,Cultural and Related Services
Swale Borough Council,29UM,14/09/2016,1144468,1517.00,MAYLOW CONSTRUCTION LTD,                         ,LEISURE & OPEN SPACES,Maintenance - Grounds,Cultural and Related Services
Swale Borough Council,29UM,14/09/2016,1144469,273.00,MAYLOW CONSTRUCTION LTD,                         ,LEISURE & OPEN SPACES,Maintenance - Grounds,Cultural and Related Services
Swale Borough Council,29UM,14/09/2016,1144470,263.00,MAYLOW CONSTRUCTION LTD,                         ,SERVICE DELIVERY,Maintenance - Grounds,Cultural and Related Services
Swale Borough Council,29UM,14/09/2016,1144556,691.00,MAYLOW CONSTRUCTION LTD,                         ,LEISURE & OPEN SPACES,Maintenance - Grounds,Cultural and Related Services
Swale Borough Council,29UM,14/09/2016,1144557,4256.00,MAYLOW CONSTRUCTION LTD,                         ,LEISURE & OPEN SPACES,Equipment Maintenance,Cultural and Related Services
Swale Borough Council,29UM,14/09/2016,1144558,4971.00,MAYLOW CONSTRUCTION LTD,                         ,LEISURE & OPEN SPACES,Equipment Maintenance,Cultural and Related Services
Swale Borough Council,29UM,14/09/2016,1144559,3896.00,MAYLOW CONSTRUCTION LTD,                         ,LEISURE & OPEN SPACES,Equipment Maintenance,Cultural and Related Services
Swale Borough Council,29UM,14/09/2016,1144560,1839.13,MAYLOW CONSTRUCTION LTD,                         ,LEISURE & OPEN SPACES,Equipment Maintenance,Cultural and Related Services
Swale Borough Council,29UM,14/09/2016,1144561,989.00,MAYLOW CONSTRUCTION LTD,                         ,LEISURE & OPEN SPACES,Maintenance - Grounds,Cultural and Related Services
Swale Borough Council,29UM,14/09/2016,1144503,1300.00,METRIC GROUP LTD,2560839                  ,CAR PARKS,Equipment Purchase,Highway and Transport Services
Swale Borough Council,29UM,14/09/2016,1144504,1400.00,METRIC GROUP LTD,2560839                  ,CAR PARKS,Equipment Purchase,Highway and Transport Services
Swale Borough Council,29UM,14/09/2016,1144307,1578.00,MIDLAND SOFTWARE LTD,1852206                  ,HUMAN RESOURCES,Computer Equipment & Materials,Internal Trading Cost Centres
Swale Borough Council,29UM,14/09/2016,1144587,493.00,MIDLANDS SIGNS LEICESTER LTD,1778323                  ,SERVICE DELIVERY,Private Contractors - CIS,Highway and Transport Services
Swale Borough Council,29UM,14/09/2016,1144499,899.99,MINSTER (SHEPPEY) CRICKET CLUB,                         ,TOURISM & SPORTS DEVELOPMENT,Grants & Subscriptions,Cultural and Related Services
Swale Borough Council,29UM,14/09/2016,1144223,7910.99,MPS MARKETING SERVICES LIMITED,6360656                  ,DEMOCRATIC & ELECTORAL SERVICES,Fees And Services,Ledger/Suspense Codes
Swale Borough Council,29UM,14/09/2016,1144224,2862.00,MPS MARKETING SERVICES LIMITED,6360656                  ,DEMOCRATIC & ELECTORAL SERVICES,Fees And Services,Ledger/Suspense Codes
Swale Borough Council,29UM,14/09/2016,1144225,4788.40,MPS MARKETING SERVICES LIMITED,6360656                  ,DEMOCRATIC & ELECTORAL SERVICES,Fees And Services,Ledger/Suspense Codes
Swale Borough Council,29UM,14/09/2016,1144642,-668.00,MPS MARKETING SERVICES LIMITED,6360656                  ,DEMOCRATIC & ELECTORAL SERVICES,Fees And Services,Ledger/Suspense Codes
Swale Borough Council,29UM,14/09/2016,1144366,107.25,MR J W GATES,                         ,LEISURE & OPEN SPACES,Maintenance - Grounds,Environmental and Regulatory Services
Swale Borough Council,29UM,14/09/2016,1144366,217.75,MR J W GATES,                         ,LEISURE & OPEN SPACES,Maintenance - Grounds,Environmental and Regulatory Services
Swale Borough Council,29UM,14/09/2016,1144416,1000.00,REDACTED PERSONAL INFORMATION,                         ,HOUSING SERVICES,Homelessness  Prevention Services,Housing
Swale Borough Council,29UM,14/09/2016,1144620,1000.00,REDACTED PERSONAL INFORMATION,                         ,PLANNING SERVICES,Legal Fees,Planning and Development Services
Swale Borough Council,29UM,14/09/2016,1144620,200.00,REDACTED PERSONAL INFORMATION,                         ,PLANNING SERVICES,Legal Fees,Planning and Development Services
Swale Borough Council,29UM,14/09/2016,1144629,475.00,REDACTED PERSONAL INFORMATION,                         ,HOUSING SERVICES,RDS - Landlord claim on Bond Scheme,Housing
Swale Borough Council,29UM,14/09/2016,1144588,813.00,NETCALL TELECOM LTD,02831215                 ,COMMISSIONING & CUSTOMER CONTACT,Computer Equipment & Materials,Internal Trading Cost Centres
Swale Borough Council,29UM,14/09/2016,1144599,252.50,OBSIDIAN SECURITY LTD.,                         ,PROPERTY SERVICES,Service Contracts,Corporate & Democratic Core
Swale Borough Council,29UM,14/09/2016,1144551,3937.50,P BINNIE CONSULTANCY LTD,07794784                 ,ECONOMIC DEVELOPMENT,Consultancy/Specialist Advice,Planning and Development Services
Swale Borough Council,29UM,14/09/2016,1144474,4250.00,PARAMOUNT INDEPENDENT PROPERTY SERVICES,                         ,HOUSING SERVICES,B & B - Landlords Payments,Housing
Swale Borough Council,29UM,14/09/2016,1144432,290.33,PORTAKABIN LIMITED,685303                   ,LEISURE & OPEN SPACES,Maintenance - Grounds,Environmental and Regulatory Services
Swale Borough Council,29UM,14/09/2016,1144448,1010.50,QS CONSULT,                         ,COMMUNITY SAFETY,Capitalised Fees And Charges,Not used in this Structure
Swale Borough Council,29UM,14/09/2016,1144151,700.54,REARDON PROPERTIES,                         ,HOUSING SERVICES,B & B - Landlords Payments,Housing
Swale Borough Council,29UM,14/09/2016,1144446,785.00,REARDON PROPERTIES,                         ,HOUSING SERVICES,B & B - Landlords Payments,Housing
Swale Borough Council,29UM,14/09/2016,1144447,490.00,REARDON PROPERTIES,                         ,HOUSING SERVICES,B & B - Landlords Payments,Housing
Swale Borough Council,29UM,14/09/2016,1144645,605.00,REARDON PROPERTIES,                         ,HOUSING SERVICES,B & B - Landlords Payments,Housing
Swale Borough Council,29UM,14/09/2016,1144646,490.00,REARDON PROPERTIES,                         ,HOUSING SERVICES,B & B - Landlords Payments,Housing
Swale Borough Council,29UM,14/09/2016,1144429,338.34,ROYAL MAIL GROUP LTD,4138203                  ,DEMOCRATIC & ELECTORAL SERVICES,Postage,Central Services to the Public
Swale Borough Council,29UM,14/09/2016,1144640,919.24,ROYAL MAIL GROUP LTD,4138203                  ,REVENUE SERVICES,Postage,Central Services to the Public
Swale Borough Council,29UM,14/09/2016,1144388,375.00,RURAL PLANNING LTD,4426249                  ,PLANNING SERVICES,Fees And Services,Planning and Development Services
Swale Borough Council,29UM,14/09/2016,1144636,588.00,SHAKESPEARE MARTINEAU LLP CLIENTS ACCOUNT,OC319029                 ,ECONOMIC DEVELOPMENT,Legal Fees,Internal Trading Cost Centres
Swale Borough Council,29UM,14/09/2016,1144422,350.00,SHARNWOOD DEVELOPMENTS LTD,                         ,HOUSING SERVICES,Homelessness  Prevention Services,Housing
Swale Borough Council,29UM,14/09/2016,1144297,6096.55,SHARP BUSINESS SYSTEMS UK,2136901                  ,ICT,Equipment Rental,Holding Codes
Swale Borough Council,29UM,14/09/2016,1144585,250.00,SHARPE PRITCHARD,                         ,PLANNING SERVICES,Legal Fees,Planning and Development Services
Swale Borough Council,29UM,14/09/2016,1144550,29.80,SODEXO MOTIVATION SOLUTIONS UK LTD,2680629                  ,HUMAN RESOURCES,Fees And Services,Corporate & Democratic Core
Swale Borough Council,29UM,14/09/2016,1144693,412.50,SOUTH EAST BUILDING CO LTD,1786838                  ,HOUSING SERVICES,Housing Renovation Grants,Not used in this Structure
Swale Borough Council,29UM,14/09/2016,1144694,879.16,SOUTH EAST BUILDING CO LTD,1786838                  ,HOUSING SERVICES,Housing Renovation Grants,Not used in this Structure
Swale Borough Council,29UM,14/09/2016,1144695,4365.00,SOUTH EAST BUILDING CO LTD,1786838                  ,HOUSING SERVICES,Housing Renovation Grants,Not used in this Structure
Swale Borough Council,29UM,14/09/2016,1144582,412.00,SOUTH WEST PLAY,                         ,LEISURE & OPEN SPACES,Equipment Purchase,Cultural and Related Services
Swale Borough Council,29UM,14/09/2016,1144522,3400.32,SOUTHERN COMMUNICATIONS LTD,1328040                  ,ICT,Telephone,Corporate & Democratic Core
Swale Borough Council,29UM,14/09/2016,1144578,1000.00,SWALE MARITIME CADETS,                         ,TOURISM & SPORTS DEVELOPMENT,Grants & Subscriptions,Cultural and Related Services
Swale Borough Council,29UM,14/09/2016,1144509,575.00,TERRY MAHONEY PHOTOGRAPHIC SERVICES,                         ,ECONOMIC DEVELOPMENT,Fees And Services,Planning and Development Services
Swale Borough Council,29UM,14/09/2016,1144462,1528.13,THE ALEXANDER CENTRE TRUST LIMITED,07281634                 ,COMMISSIONING & CUSTOMER CONTACT,Rent,Internal Trading Cost Centres
Swale Borough Council,29UM,14/09/2016,1144308,275.00,THE REGENT GUEST HOUSE LTD,06537084                 ,HOUSING SERVICES,B & B - Landlords Payments,Housing
Swale Borough Council,29UM,14/09/2016,1144491,7721.74,THOMSON REUTERS,1679046                  ,MKIP LEGAL SERVICES,"Books, Journals & e - resources",Internal Trading Cost Centres
Swale Borough Council,29UM,14/09/2016,1144689,1893.38,TLC STAIRLIFTS LTD,OC337646                 ,HOUSING SERVICES,Housing Renovation Grants,Not used in this Structure
Swale Borough Council,29UM,14/09/2016,1144328,1645.00,TRAFALGAR TAVERN LTD,07999329                 ,HOUSING SERVICES,B & B - Landlords Payments,Housing
Swale Borough Council,29UM,14/09/2016,1144584,7093.08,TUNBRIDGE WELLS BOROUGH COUNCIL,                         ,DEMOCRATIC & ELECTORAL SERVICES,Grants & Subscriptions,Corporate & Democratic Core
Swale Borough Council,29UM,14/09/2016,1144572,1230.00,VENN GROUP LIMITED,                         ,MKIP LEGAL SERVICES,Agency/Contract Staff,Internal Trading Cost Centres
Swale Borough Council,29UM,14/09/2016,1143958,918.84,WHISTL UK LIMITED,04417047                 ,REVENUE SERVICES,Postage,Central Services to the Public
Swale Borough Council,29UM,14/09/2016,1143958,1.86,WHISTL UK LIMITED,04417047                 ,PLANNING SERVICES,Postage,Planning and Development Services
Swale Borough Council,29UM,14/09/2016,1143958,459.41,WHISTL UK LIMITED,04417047                 ,REVENUE SERVICES,Postage,Housing
Swale Borough Council,29UM,14/09/2016,1143958,3.46,WHISTL UK LIMITED,04417047                 ,LEISURE & OPEN SPACES,Postage,Internal Trading Cost Centres
Swale Borough Council,29UM,14/09/2016,1143958,20.05,WHISTL UK LIMITED,04417047                 ,CAR PARKS,Postage,Internal Trading Cost Centres
Swale Borough Council,29UM,14/09/2016,1143958,2.15,WHISTL UK LIMITED,04417047                 ,ENVIRONMENTAL RESPONSE TEAM,Postage,Internal Trading Cost Centres
Swale Borough Council,29UM,14/09/2016,1143958,1.87,WHISTL UK LIMITED,04417047                 ,ECONOMIC DEVELOPMENT,Postage,Internal Trading Cost Centres
Swale Borough Council,29UM,14/09/2016,1143958,140.96,WHISTL UK LIMITED,04417047                 ,PROPERTY SERVICES,Postage,Holding Codes
Swale Borough Council,29UM,14/09/2016,1143958,59.51,WHISTL UK LIMITED,04417047                 ,DEMOCRATIC & ELECTORAL SERVICES,Postage,Central Services to the Public
Swale Borough Council,29UM,14/09/2016,1144108,521.35,WHISTL UK LIMITED,04417047                 ,REVENUE SERVICES,Postage,Central Services to the Public
Swale Borough Council,29UM,14/09/2016,1144108,1.09,WHISTL UK LIMITED,04417047                 ,PLANNING SERVICES,Postage,Planning and Development Services
Swale Borough Council,29UM,14/09/2016,1144108,260.67,WHISTL UK LIMITED,04417047                 ,REVENUE SERVICES,Postage,Housing
Swale Borough Council,29UM,14/09/2016,1144108,6.94,WHISTL UK LIMITED,04417047                 ,LEISURE & OPEN SPACES,Postage,Internal Trading Cost Centres
Swale Borough Council,29UM,14/09/2016,1144108,28.00,WHISTL UK LIMITED,04417047                 ,CAR PARKS,Postage,Internal Trading Cost Centres
Swale Borough Council,29UM,14/09/2016,1144108,5.31,WHISTL UK LIMITED,04417047                 ,ENVIRONMENTAL RESPONSE TEAM,Postage,Internal Trading Cost Centres
Swale Borough Council,29UM,14/09/2016,1144108,64.29,WHISTL UK LIMITED,04417047                 ,PROPERTY SERVICES,Postage,Holding Codes
Swale Borough Council,29UM,14/09/2016,1144108,30.01,WHISTL UK LIMITED,04417047                 ,DEMOCRATIC & ELECTORAL SERVICES,Postage,Central Services to the Public
Swale Borough Council,29UM,14/09/2016,1144270,614.87,WHISTL UK LIMITED,04417047                 ,REVENUE SERVICES,Postage,Central Services to the Public
Swale Borough Council,29UM,14/09/2016,1144270,2.75,WHISTL UK LIMITED,04417047                 ,PLANNING SERVICES,Postage,Planning and Development Services
Swale Borough Council,29UM,14/09/2016,1144270,307.43,WHISTL UK LIMITED,04417047                 ,REVENUE SERVICES,Postage,Housing
Swale Borough Council,29UM,14/09/2016,1144270,4.88,WHISTL UK LIMITED,04417047                 ,LEISURE & OPEN SPACES,Postage,Internal Trading Cost Centres
Swale Borough Council,29UM,14/09/2016,1144270,20.68,WHISTL UK LIMITED,04417047                 ,CAR PARKS,Postage,Internal Trading Cost Centres
Swale Borough Council,29UM,14/09/2016,1144270,14.36,WHISTL UK LIMITED,04417047                 ,ENVIRONMENTAL RESPONSE TEAM,Postage,Internal Trading Cost Centres
Swale Borough Council,29UM,14/09/2016,1144270,7.74,WHISTL UK LIMITED,04417047                 ,ECONOMIC DEVELOPMENT,Postage,Internal Trading Cost Centres
Swale Borough Council,29UM,14/09/2016,1144270,51.23,WHISTL UK LIMITED,04417047                 ,PROPERTY SERVICES,Postage,Holding Codes
Swale Borough Council,29UM,14/09/2016,1144270,27.96,WHISTL UK LIMITED,04417047                 ,DEMOCRATIC & ELECTORAL SERVICES,Postage,Central Services to the Public
Swale Borough Council,29UM,14/09/2016,1144396,1373.62,WHISTL UK LIMITED,04417047                 ,REVENUE SERVICES,Postage,Central Services to the Public
Swale Borough Council,29UM,14/09/2016,1144396,4.71,WHISTL UK LIMITED,04417047                 ,PLANNING SERVICES,Postage,Planning and Development Services
Swale Borough Council,29UM,14/09/2016,1144396,686.81,WHISTL UK LIMITED,04417047                 ,REVENUE SERVICES,Postage,Housing
Swale Borough Council,29UM,14/09/2016,1144396,24.44,WHISTL UK LIMITED,04417047                 ,LEISURE & OPEN SPACES,Postage,Internal Trading Cost Centres
Swale Borough Council,29UM,14/09/2016,1144396,14.92,WHISTL UK LIMITED,04417047                 ,CAR PARKS,Postage,Internal Trading Cost Centres
Swale Borough Council,29UM,14/09/2016,1144396,9.34,WHISTL UK LIMITED,04417047                 ,ENVIRONMENTAL RESPONSE TEAM,Postage,Internal Trading Cost Centres
Swale Borough Council,29UM,14/09/2016,1144396,62.25,WHISTL UK LIMITED,04417047                 ,ECONOMIC DEVELOPMENT,Postage,Internal Trading Cost Centres
Swale Borough Council,29UM,14/09/2016,1144396,175.23,WHISTL UK LIMITED,04417047                 ,PROPERTY SERVICES,Postage,Holding Codes
Swale Borough Council,29UM,14/09/2016,1144396,58.42,WHISTL UK LIMITED,04417047                 ,DEMOCRATIC & ELECTORAL SERVICES,Postage,Central Services to the Public
Swale Borough Council,29UM,14/09/2016,1144568,387.56,WHISTL UK LIMITED,04417047                 ,REVENUE SERVICES,Postage,Central Services to the Public
Swale Borough Council,29UM,14/09/2016,1144568,1.06,WHISTL UK LIMITED,04417047                 ,PLANNING SERVICES,Postage,Planning and Development Services
Swale Borough Council,29UM,14/09/2016,1144568,193.78,WHISTL UK LIMITED,04417047                 ,REVENUE SERVICES,Postage,Housing
Swale Borough Council,29UM,14/09/2016,1144568,36.75,WHISTL UK LIMITED,04417047                 ,LEISURE & OPEN SPACES,Postage,Internal Trading Cost Centres
Swale Borough Council,29UM,14/09/2016,1144568,17.07,WHISTL UK LIMITED,04417047                 ,CAR PARKS,Postage,Internal Trading Cost Centres
Swale Borough Council,29UM,14/09/2016,1144568,0.31,WHISTL UK LIMITED,04417047                 ,ENVIRONMENTAL RESPONSE TEAM,Postage,Internal Trading Cost Centres
Swale Borough Council,29UM,14/09/2016,1144568,88.26,WHISTL UK LIMITED,04417047                 ,PROPERTY SERVICES,Postage,Holding Codes
Swale Borough Council,29UM,14/09/2016,1144568,144.31,WHISTL UK LIMITED,04417047                 ,DEMOCRATIC & ELECTORAL SERVICES,Postage,Central Services to the Public
Swale Borough Council,29UM,14/09/2016,1144601,350.00,WILLOW TREE HOME SOLUTIONS LTD,                         ,HOUSING SERVICES,Staying Put small repairs (contractors),Housing
Swale Borough Council,29UM,14/09/2016,1144691,430.52,WILLOW TREE HOME SOLUTIONS LTD,                         ,HOUSING SERVICES,Housing Renovation Grants,Not used in this Structure
Swale Borough Council,29UM,14/09/2016,1144692,4350.00,WILLOW TREE HOME SOLUTIONS LTD,                         ,HOUSING SERVICES,Housing Renovation Grants,Not used in this Structure
Swale Borough Council,29UM,21/09/2016,1144848,1427.00,ACORN MAINTENANCE SERVICES,3546898                  ,HOUSING SERVICES,Housing Renovation Grants,Not used in this Structure
Swale Borough Council,29UM,21/09/2016,1144863,525.90,ACORN MAINTENANCE SERVICES,3546898                  ,HOUSING SERVICES,Housing Renovation Grants,Not used in this Structure
Swale Borough Council,29UM,21/09/2016,4500540,-1427.00,ACORN MAINTENANCE SERVICES,3546898                  ,HOUSING SERVICES,Housing Renovation Grants,Not used in this Structure
Swale Borough Council,29UM,21/09/2016,1144676,500.00,APCOA PARKING (UK) LTD,2572947                  ,CAR PARKS,Private Contractors,Highway and Transport Services
Swale Borough Council,29UM,21/09/2016,1144592,1295.00,BATES JPW ADVERTISING LTD,784540                   ,MKIP LEGAL SERVICES,Recruitment Adverts - Staff,Internal Trading Cost Centres
Swale Borough Council,29UM,21/09/2016,1144593,1295.00,BATES JPW ADVERTISING LTD,784540                   ,MKIP LEGAL SERVICES,Recruitment Adverts - Staff,Internal Trading Cost Centres
Swale Borough Council,29UM,21/09/2016,1144594,1295.00,BATES JPW ADVERTISING LTD,784540                   ,MKIP LEGAL SERVICES,Recruitment Adverts - Staff,Internal Trading Cost Centres
Swale Borough Council,29UM,21/09/2016,1144380,1290.90,BLENWOOD LTD,4383277                  ,LEISURE & OPEN SPACES,Grounds Contract Variations,Cultural and Related Services
Swale Borough Council,29UM,21/09/2016,1144836,9455.16,BMR CONSTRUCTION LTD,                         ,COMMUNITY SAFETY,Capitalised Fees And Charges,Not used in this Structure
Swale Borough Council,29UM,21/09/2016,1144709,548.00,BOB SKINNER TRAINING AND CONSULTANCY LTD,                         ,COMMUNITY SAFETY,Fees And Services,Environmental and Regulatory Services
Swale Borough Council,29UM,21/09/2016,1144533,1300.00,BRC CONSULTING  SERVICES LTD,                         ,FINANCIAL SERVICES,Consultancy/Specialist Advice,Corporate & Democratic Core
Swale Borough Council,29UM,21/09/2016,1144661,1190.00,BT DEVELOPMENTS,                         ,HOUSING SERVICES,B & B - Landlords Payments,Housing
Swale Borough Council,29UM,21/09/2016,1144591,359.00,CONTRACT SECURITY SERVICES,2461362                  ,EXCHEQUER,Cash Security,Internal Trading Cost Centres
Swale Borough Council,29UM,21/09/2016,1144591,3394.56,CONTRACT SECURITY SERVICES,2461362                  ,CAR PARKS,Cash Security,Highway and Transport Services
Swale Borough Council,29UM,21/09/2016,1144731,1146.47,DX NETWORK SERVICES LIMITED,5026914                  ,MKIP LEGAL SERVICES,Postage,Internal Trading Cost Centres
Swale Borough Council,29UM,21/09/2016,1144789,251.00,ENVIRONMENT ANALYST LTD,07333162                 ,MKIP ENVIRONMENTAL SERVICES,"Books, Journals & e - resources",Internal Trading Cost Centres
Swale Borough Council,29UM,21/09/2016,1144779,811.10,GLASDON U.K.LIMITED,2160576                  ,SERVICE DELIVERY,Maintenance - Grounds,Cultural and Related Services
Swale Borough Council,29UM,21/09/2016,1144571,746.85,HAYS ACCOUNTANCY PERSONNEL,975677                   ,EMERGENCY PLANNING,Agency/Contract Staff,Central Services to the Public
Swale Borough Council,29UM,21/09/2016,1144766,908.33,HAYS ACCOUNTANCY PERSONNEL,975677                   ,EMERGENCY PLANNING,Agency/Contract Staff,Central Services to the Public
Swale Borough Council,29UM,21/09/2016,1144849,5220.00,HUBBARD & HOUGHTON CONSTRUCTION LTD,                         ,HOUSING SERVICES,Housing Renovation Grants,Not used in this Structure
Swale Borough Council,29UM,21/09/2016,1144793,1415.00,HYDRO DESCALING LTD,1304128                  ,LEISURE & OPEN SPACES,Maintenance - Grounds,Cultural and Related Services
Swale Borough Council,29UM,21/09/2016,1144133,5500.00,IDOX SOFTWARE LTD,06706798                 ,DIRECTOR OF CORPORATE SERVICES,Computer Equipment & Materials,Environmental and Regulatory Services
Swale Borough Council,29UM,21/09/2016,1144471,3800.00,J N CLEARANCE,                         ,CONTRACT & PROCUREMENT,"Clearance Of Waste,Fly Tipping",Environmental and Regulatory Services
Swale Borough Council,29UM,21/09/2016,1144628,429.66,KENT COUNTY COUNCIL (KCS),                         ,PROPERTY SERVICES,Gas,Corporate & Democratic Core
Swale Borough Council,29UM,21/09/2016,1144671,4099.55,KENT COUNTY COUNCIL (KCS),                         ,PROPERTY SERVICES,Electricity,Corporate & Democratic Core
Swale Borough Council,29UM,21/09/2016,1144677,295.00,KGB CLEANING & SUPPORT SERVICES LTD,                         ,CONTRACT & PROCUREMENT,Hygiene Service Contracts,Environmental and Regulatory Services
Swale Borough Council,29UM,21/09/2016,1144680,20891.00,KGB CLEANING & SUPPORT SERVICES LTD,                         ,CONTRACT & PROCUREMENT,Hygiene Service Contracts,Environmental and Regulatory Services
Swale Borough Council,29UM,21/09/2016,1144638,300.00,LEMAR LIMITED,04350292                 ,LEISURE & OPEN SPACES,Maintenance - Grounds,Cultural and Related Services
Swale Borough Council,29UM,21/09/2016,1144638,575.00,LEMAR LIMITED,04350292                 ,LEISURE & OPEN SPACES,Maintenance - Grounds,Cultural and Related Services
Swale Borough Council,29UM,21/09/2016,1144639,300.00,LEMAR LIMITED,04350292                 ,LEISURE & OPEN SPACES,Maintenance - Grounds,Environmental and Regulatory Services
Swale Borough Council,29UM,21/09/2016,1144639,30.00,LEMAR LIMITED,04350292                 ,LEISURE & OPEN SPACES,Maintenance - Grounds,Environmental and Regulatory Services
Swale Borough Council,29UM,21/09/2016,1144452,22452.00,LESSHOMELESS LIMITED,08458851                 ,HOUSING SERVICES,B & B - Landlords Payments,Housing
Swale Borough Council,29UM,21/09/2016,1144494,19662.00,LESSHOMELESS LIMITED,08458851                 ,HOUSING SERVICES,B & B - Landlords Payments,Housing
Swale Borough Council,29UM,21/09/2016,1144672,13828.00,LESSHOMELESS LIMITED,08458851                 ,HOUSING SERVICES,B & B - Landlords Payments,Housing
Swale Borough Council,29UM,21/09/2016,1144607,391.00,LILAC ESTATES,                         ,HOUSING SERVICES,B & B - Landlords Payments,Housing
Swale Borough Council,29UM,21/09/2016,1144608,315.00,LILAC ESTATES,                         ,HOUSING SERVICES,B & B - Landlords Payments,Housing
Swale Borough Council,29UM,21/09/2016,1144609,619.00,LILAC ESTATES,                         ,HOUSING SERVICES,B & B - Landlords Payments,Housing
Swale Borough Council,29UM,21/09/2016,1144610,315.00,LILAC ESTATES,                         ,HOUSING SERVICES,B & B - Landlords Payments,Housing
Swale Borough Council,29UM,21/09/2016,1144611,270.00,LILAC ESTATES,                         ,HOUSING SERVICES,B & B - Landlords Payments,Housing
Swale Borough Council,29UM,21/09/2016,1144624,378.00,LILAC ESTATES,                         ,HOUSING SERVICES,B & B - Landlords Payments,Housing
Swale Borough Council,29UM,21/09/2016,1144625,378.00,LILAC ESTATES,                         ,HOUSING SERVICES,B & B - Landlords Payments,Housing
Swale Borough Council,29UM,21/09/2016,1144626,378.00,LILAC ESTATES,                         ,HOUSING SERVICES,B & B - Landlords Payments,Housing
Swale Borough Council,29UM,21/09/2016,1144627,378.00,LILAC ESTATES,                         ,HOUSING SERVICES,B & B - Landlords Payments,Housing
Swale Borough Council,29UM,21/09/2016,1144726,2179.80,LOOKERS LEASING LIMITED,                         ,ENVIRONMENTAL RESPONSE TEAM,Hire & Leases,Internal Trading Cost Centres
Swale Borough Council,29UM,21/09/2016,1143897,1610.00,MAGEES GUESTHOUSE,                         ,HOUSING SERVICES,B & B - Landlords Payments,Housing
Swale Borough Council,29UM,21/09/2016,1144666,1145.00,MAGEES GUESTHOUSE,                         ,HOUSING SERVICES,B & B - Landlords Payments,Housing
Swale Borough Council,29UM,21/09/2016,1144596,763.00,MAYLOW CONSTRUCTION LTD,                         ,LEISURE & OPEN SPACES,Maintenance - Grounds,Cultural and Related Services
Swale Borough Council,29UM,21/09/2016,1144616,366.00,MAYLOW CONSTRUCTION LTD,                         ,LEISURE & OPEN SPACES,Maintenance - Grounds,Cultural and Related Services
Swale Borough Council,29UM,21/09/2016,1144778,1500.00,REDACTED PERSONAL INFORMATION,                         ,PROPERTY SERVICES,Legal Fees,Trading Undertaking
Swale Borough Council,29UM,21/09/2016,1144778,300.00,REDACTED PERSONAL INFORMATION,                         ,PROPERTY SERVICES,Legal Fees,Trading Undertaking
Swale Borough Council,29UM,21/09/2016,1144667,275.00,REDACTED PERSONAL INFORMATION,                         ,ENVIRONMENTAL RESPONSE TEAM,Legal Fees,Internal Trading Cost Centres
Swale Borough Council,29UM,21/09/2016,1144667,55.00,REDACTED PERSONAL INFORMATION,                         ,ENVIRONMENTAL RESPONSE TEAM,Legal Fees,Internal Trading Cost Centres
Swale Borough Council,29UM,21/09/2016,1144777,325.00,REDACTED PERSONAL INFORMATION,                         ,ENVIRONMENTAL RESPONSE TEAM,Legal Fees,Internal Trading Cost Centres
Swale Borough Council,29UM,21/09/2016,1144777,65.00,REDACTED PERSONAL INFORMATION,                         ,ENVIRONMENTAL RESPONSE TEAM,Legal Fees,Internal Trading Cost Centres
Swale Borough Council,29UM,21/09/2016,1144659,300.00,MR J W GATES,                         ,LEISURE & OPEN SPACES,Maintenance - Grounds,Cultural and Related Services
Swale Borough Council,29UM,21/09/2016,1144799,269.92,MR J W GATES,                         ,LEISURE & OPEN SPACES,Maintenance - Grounds,Cultural and Related Services
Swale Borough Council,29UM,21/09/2016,1144801,44.00,MR J W GATES,                         ,LEISURE & OPEN SPACES,Maintenance - Grounds,Cultural and Related Services
Swale Borough Council,29UM,21/09/2016,1144801,250.00,MR J W GATES,                         ,LEISURE & OPEN SPACES,Maintenance - Grounds,Cultural and Related Services
Swale Borough Council,29UM,21/09/2016,1144756,252.75,NPOWER,                         ,CAR PARKS,Electricity,Highway and Transport Services
Swale Borough Council,29UM,21/09/2016,1144888,15697.00,PEAC HOLDINGS (UK) LTD (DT),3088213                  ,LEISURE & OPEN SPACES,Contracts,Cultural and Related Services
Swale Borough Council,29UM,21/09/2016,1144889,15697.00,PEAC HOLDINGS (UK) LTD (DT),3088213                  ,LEISURE & OPEN SPACES,Contracts,Cultural and Related Services
Swale Borough Council,29UM,21/09/2016,1144890,15697.00,PEAC HOLDINGS (UK) LTD (DT),3088213                  ,LEISURE & OPEN SPACES,Contracts,Cultural and Related Services
Swale Borough Council,29UM,21/09/2016,1144891,15697.00,PEAC HOLDINGS (UK) LTD (DT),3088213                  ,LEISURE & OPEN SPACES,Contracts,Cultural and Related Services
Swale Borough Council,29UM,21/09/2016,1144846,4330.12,PRECEPT CS LIMITED,07311462                 ,HOUSING SERVICES,Housing Renovation Grants,Not used in this Structure
Swale Borough Council,29UM,21/09/2016,1144781,314.63,PREMIER PAPER GROUP LTD,                         ,PROPERTY SERVICES,Paper,Internal Trading Cost Centres
Swale Borough Council,29UM,21/09/2016,1144762,528.60,REARDON PROPERTIES,                         ,HOUSING SERVICES,RDS - Landlord claim on Bond Scheme,Housing
Swale Borough Council,29UM,21/09/2016,1144829,1500.00,REARDON PROPERTIES,                         ,HOUSING SERVICES,Homelessness  Prevention Services,Housing
Swale Borough Council,29UM,21/09/2016,1144580,380.00,RILEY'S REMOVALS,                         ,HOUSING SERVICES,Storage Expenses,Housing
Swale Borough Council,29UM,21/09/2016,1144165,710.00,ROSE REMOVALS,7572105                  ,HOUSING SERVICES,Storage Expenses,Housing
Swale Borough Council,29UM,21/09/2016,1144479,9036.92,SERCO LEISURE OPERATING LIMITED,04687478                 ,LEISURE & OPEN SPACES,Procurement Contracts Only,Cultural and Related Services
Swale Borough Council,29UM,21/09/2016,1144883,2968.00,SERCO PAISA LTD - (DT),04908482                 ,LEISURE & OPEN SPACES,Contracts,Cultural and Related Services
Swale Borough Council,29UM,21/09/2016,1144884,2968.00,SERCO PAISA LTD - (DT),04908482                 ,LEISURE & OPEN SPACES,Contracts,Cultural and Related Services
Swale Borough Council,29UM,21/09/2016,1144885,2968.00,SERCO PAISA LTD - (DT),04908482                 ,LEISURE & OPEN SPACES,Contracts,Cultural and Related Services
Swale Borough Council,29UM,21/09/2016,1144886,2968.00,SERCO PAISA LTD - (DT),04908482                 ,LEISURE & OPEN SPACES,Contracts,Cultural and Related Services
Swale Borough Council,29UM,21/09/2016,1144887,2968.00,SERCO PAISA LTD - (DT),04908482                 ,LEISURE & OPEN SPACES,Contracts,Cultural and Related Services
Swale Borough Council,29UM,21/09/2016,1144214,400.00,SHEPPY GLASS CENTRE LTD,                         ,HOUSING SERVICES,Rechargeable Environ Works,Housing
Swale Borough Council,29UM,21/09/2016,1144367,767.83,SOUTHERN WATER SERVICES LIMITED,2366670                  ,CONTRACT & PROCUREMENT,Water - Metered,Environmental and Regulatory Services
Swale Borough Council,29UM,21/09/2016,1144669,2693.41,SOUTHERN WATER SERVICES LIMITED,2366670                  ,CONTRACT & PROCUREMENT,Water - Metered,Environmental and Regulatory Services
Swale Borough Council,29UM,21/09/2016,1144186,250.00,SURVEYORS AND VALUERS LTD,                         ,HOUSING SERVICES,Rechargeable Environ Works,Housing
Swale Borough Council,29UM,21/09/2016,1144475,11829.38,SWALE COMMUNITY LEISURE LIMITED,31132R                   ,LEISURE & OPEN SPACES,Procurement Contracts Only,Cultural and Related Services
Swale Borough Council,29UM,21/09/2016,1144476,4700.00,SWALE COMMUNITY LEISURE LIMITED,31132R                   ,LEISURE & OPEN SPACES,Procurement Contracts Only,Cultural and Related Services
Swale Borough Council,29UM,21/09/2016,1144635,125.00,THE ALEXANDER CENTRE TRUST LIMITED,07281634                 ,COMMUNITY SAFETY,Hire Of Premises,Planning and Development Services
Swale Borough Council,29UM,21/09/2016,1144635,335.00,THE ALEXANDER CENTRE TRUST LIMITED,07281634                 ,COMMUNITY SAFETY,Hire Of Premises,Planning and Development Services
Swale Borough Council,29UM,21/09/2016,1144275,252.00,THE BAYLEAF CAFE,                         ,HOUSING SERVICES,Catering Provisions,Housing
Swale Borough Council,29UM,21/09/2016,1144847,1427.00,TLC STAIRLIFTS LTD,OC337646                 ,HOUSING SERVICES,Housing Renovation Grants,Not used in this Structure
Swale Borough Council,29UM,21/09/2016,1144648,1785.00,TRAFALGAR TAVERN LTD,07999329                 ,HOUSING SERVICES,B & B - Landlords Payments,Housing
Swale Borough Council,29UM,21/09/2016,1144738,1680.00,TRAFALGAR TAVERN LTD,07999329                 ,HOUSING SERVICES,B & B - Landlords Payments,Housing
Swale Borough Council,29UM,21/09/2016,1144668,36981.73,UNIT4 BUSINESS SOFTWARE LIMITED,1737985                  ,FINANCIAL SERVICES,Computer Equipment & Materials,Internal Trading Cost Centres
Swale Borough Council,29UM,21/09/2016,1144767,300.00,VENN GROUP LIMITED,                         ,MKIP LEGAL SERVICES,Agency/Contract Staff,Internal Trading Cost Centres
Swale Borough Council,29UM,21/09/2016,1144768,1230.00,VENN GROUP LIMITED,                         ,MKIP LEGAL SERVICES,Agency/Contract Staff,Internal Trading Cost Centres
Swale Borough Council,29UM,21/09/2016,1144769,900.00,VENN GROUP LIMITED,                         ,MKIP LEGAL SERVICES,Agency/Contract Staff,Internal Trading Cost Centres
Swale Borough Council,29UM,21/09/2016,1144739,900.00,VP PROPERTY DEVELOPMENT LTD,                         ,HOUSING SERVICES,B & B - Landlords Payments,Housing
Swale Borough Council,29UM,21/09/2016,1144662,300.00,WEALD WOODSCAPES LTD,8028446                  ,LEISURE & OPEN SPACES,Maintenance - Grounds,Cultural and Related Services
Swale Borough Council,29UM,21/09/2016,1144663,300.00,WEALD WOODSCAPES LTD,8028446                  ,LEISURE & OPEN SPACES,Maintenance - Grounds,Cultural and Related Services
Swale Borough Council,29UM,21/09/2016,1144745,1500.00,WEST-SOLE FENCING CO. LTD.,05726854                 ,LEISURE & OPEN SPACES,Maintenance - Grounds,Cultural and Related Services
Swale Borough Council,29UM,21/09/2016,1144745,2500.00,WEST-SOLE FENCING CO. LTD.,05726854                 ,LEISURE & OPEN SPACES,Equipment Purchase,Cultural and Related Services
Swale Borough Council,29UM,21/09/2016,1144454,2375.00,WHITE RESIDENTIAL,                         ,HOUSING SERVICES,B & B - Landlords Payments,Housing
Swale Borough Council,29UM,21/09/2016,1144850,3870.00,WILLOW TREE HOME SOLUTIONS LTD,                         ,HOUSING SERVICES,Housing Renovation Grants,Not used in this Structure
Swale Borough Council,29UM,28/09/2016,1145018,2130.00,AYS LTD,                         ,LEISURE & OPEN SPACES,Maintenance - Grounds,Cultural and Related Services
Swale Borough Council,29UM,28/09/2016,1145027,10814.89,BEADLES SKODA,                         ,FINANCIAL SERVICES,Payments in Year,Ledger/Suspense Codes
Swale Borough Council,29UM,28/09/2016,1145027,-5319.89,BEADLES SKODA,                         ,FINANCIAL SERVICES,Repaid By New Car Loan,Ledger/Suspense Codes
Swale Borough Council,29UM,28/09/2016,1144378,107451.36,BLENWOOD LTD,4383277                  ,LEISURE & OPEN SPACES,Grounds Maint Suspense,Cultural and Related Services
Swale Borough Council,29UM,28/09/2016,1144379,4416.47,BLENWOOD LTD,4383277                  ,LEISURE & OPEN SPACES,Grounds Maint Suspense,Cultural and Related Services
Swale Borough Council,29UM,28/09/2016,1144797,273.33,BLENWOOD LTD,4383277                  ,LEISURE & OPEN SPACES,Equipment Purchase,Cultural and Related Services
Swale Borough Council,29UM,28/09/2016,1144798,334.37,BLENWOOD LTD,4383277                  ,LEISURE & OPEN SPACES,Equipment Purchase,Cultural and Related Services
Swale Borough Council,29UM,28/09/2016,1144939,1546.20,CHALKWELL COACH HIRE LTD,2520842                  ,TOURISM & SPORTS DEVELOPMENT,Fees And Services,Cultural and Related Services
Swale Borough Council,29UM,28/09/2016,1145064,15697.00,CIT EQUIPMENT FINANCE (UK) LIMITED - (DT),3088213                  ,LEISURE & OPEN SPACES,Contracts,Cultural and Related Services
Swale Borough Council,29UM,28/09/2016,1144940,274.10,CITY & KENT CLEANING LTD,                         ,PROPERTY SERVICES,Cleaning Materials,Internal Trading Cost Centres
Swale Borough Council,29UM,28/09/2016,1144786,28000.00,COLWIN GROUP,2911673                  ,CAR PARKS,Construction,Not used in this Structure
Swale Borough Council,29UM,28/09/2016,1144707,7423.26,COMENSURA LTD,04085767                 ,HUMAN RESOURCES,Agency/Contract Staff,Internal Trading Cost Centres
Swale Borough Council,29UM,28/09/2016,1143476,3397.00,COMMERCIAL SERVICES TRADING LTD,5858178                  ,ENVIRONMENTAL RESPONSE TEAM,Hire & Leases,Internal Trading Cost Centres
Swale Borough Council,29UM,28/09/2016,1143477,3418.00,COMMERCIAL SERVICES TRADING LTD,5858178                  ,ENVIRONMENTAL RESPONSE TEAM,Hire & Leases,Internal Trading Cost Centres
Swale Borough Council,29UM,28/09/2016,1143478,3416.00,COMMERCIAL SERVICES TRADING LTD,5858178                  ,ENVIRONMENTAL RESPONSE TEAM,Hire & Leases,Environmental and Regulatory Services
Swale Borough Council,29UM,28/09/2016,1144740,-2788.95,COMMERCIAL SERVICES TRADING LTD,5858178                  ,ENVIRONMENTAL RESPONSE TEAM,Hire & Leases,Environmental and Regulatory Services
Swale Borough Council,29UM,28/09/2016,1144741,-2661.76,COMMERCIAL SERVICES TRADING LTD,5858178                  ,ENVIRONMENTAL RESPONSE TEAM,Hire & Leases,Internal Trading Cost Centres
Swale Borough Council,29UM,28/09/2016,1144742,-2678.21,COMMERCIAL SERVICES TRADING LTD,5858178                  ,ENVIRONMENTAL RESPONSE TEAM,Hire & Leases,Internal Trading Cost Centres
Swale Borough Council,29UM,28/09/2016,1144743,3328.00,COMMERCIAL SERVICES TRADING LTD,5858178                  ,ENVIRONMENTAL RESPONSE TEAM,Hire & Leases,Internal Trading Cost Centres
Swale Borough Council,29UM,28/09/2016,1145024,-2489.16,COMMERCIAL SERVICES TRADING LTD,5858178                  ,ENVIRONMENTAL RESPONSE TEAM,Hire & Leases,Internal Trading Cost Centres
Swale Borough Council,29UM,28/09/2016,1145081,3610.43,CO-OP BANK PLC - (DT),                         ,REVENUE SERVICES,Bank Charges Pay Point,Central Services to the Public
Swale Borough Council,29UM,28/09/2016,1145081,47.04,CO-OP BANK PLC - (DT),                         ,REVENUE SERVICES,Bank Charges Pay Point,Central Services to the Public
Swale Borough Council,29UM,28/09/2016,1145081,59.58,CO-OP BANK PLC - (DT),                         ,REVENUE SERVICES,Bank Charges Pay Point,Housing
Swale Borough Council,29UM,28/09/2016,1145081,8.96,CO-OP BANK PLC - (DT),                         ,EXCHEQUER,Bank Charges Pay Point,Internal Trading Cost Centres
Swale Borough Council,29UM,28/09/2016,1145081,61.37,CO-OP BANK PLC - (DT),                         ,EXCHEQUER,Bank Charges Pay Point,Internal Trading Cost Centres
Swale Borough Council,29UM,28/09/2016,1144600,1988.01,DHA PLANNING,2683290                  ,PLANNING SERVICES,Fees And Services,Internal Trading Cost Centres
Swale Borough Council,29UM,28/09/2016,1144604,964.06,DHA PLANNING,2683290                  ,PLANNING SERVICES,Fees And Services,Internal Trading Cost Centres
Swale Borough Council,29UM,28/09/2016,1144612,607.50,DHA PLANNING,2683290                  ,PLANNING SERVICES,Fees And Services,Internal Trading Cost Centres
Swale Borough Council,29UM,28/09/2016,1144613,562.50,DHA PLANNING,2683290                  ,PLANNING SERVICES,Fees And Services,Internal Trading Cost Centres
Swale Borough Council,29UM,28/09/2016,1144614,387.70,DHA PLANNING,2683290                  ,PLANNING SERVICES,Fees And Services,Internal Trading Cost Centres
Swale Borough Council,29UM,28/09/2016,1145048,4100.00,DOLPHIN STAIRLIFTS (KENT),04181846                 ,HOUSING SERVICES,Housing Renovation Grants,Not used in this Structure
Swale Borough Council,29UM,28/09/2016,1145049,4000.00,DOLPHIN STAIRLIFTS (KENT),04181846                 ,HOUSING SERVICES,Housing Renovation Grants,Not used in this Structure
Swale Borough Council,29UM,28/09/2016,1144986,718.01,EDEN PARK (STMS) LTD,6116389                  ,LEISURE & OPEN SPACES,Equipment Purchase,Cultural and Related Services
Swale Borough Council,29UM,28/09/2016,1144986,86.30,EDEN PARK (STMS) LTD,6116389                  ,LEISURE & OPEN SPACES,Equipment Purchase,Cultural and Related Services
Swale Borough Council,29UM,28/09/2016,1144975,536.40,FLU XPRESS LTD,                         ,CHIEF EXECUTIVE,Fees And Services,Corporate & Democratic Core
Swale Borough Council,29UM,28/09/2016,1144894,746.85,HAYS ACCOUNTANCY PERSONNEL,975677                   ,EMERGENCY PLANNING,Agency/Contract Staff,Central Services to the Public
Swale Borough Council,29UM,28/09/2016,1144893,3949.00,HEADLEY BROTHERS LIMITED,00491836                 ,COMMUNICATIONS,Developing & Printing,Corporate & Democratic Core
Swale Borough Council,29UM,28/09/2016,1145050,1993.50,HUBBARD & HOUGHTON CONSTRUCTION LTD,                         ,HOUSING SERVICES,Housing Renovation Grants,Not used in this Structure
Swale Borough Council,29UM,28/09/2016,1145051,9000.00,HUBBARD & HOUGHTON CONSTRUCTION LTD,                         ,HOUSING SERVICES,Housing Renovation Grants,Not used in this Structure
Swale Borough Council,29UM,28/09/2016,1144706,5460.00,KENT COUNTY COUNCIL,                         ,PLANNING SERVICES,Consultancy/Specialist Advice,Planning and Development Services
Swale Borough Council,29UM,28/09/2016,1144841,19295.36,KENT COUNTY COUNCIL,                         ,PLANNING SERVICES,Payments in Year,Ledger/Suspense Codes
Swale Borough Council,29UM,28/09/2016,1144643,420.00,KENT INVICTA CHAMBER OF COMMERCE,2794615                  ,ECONOMIC DEVELOPMENT,Fees And Services,Planning and Development Services
Swale Borough Council,29UM,28/09/2016,1145061,45.00,LAND REGISTRY - (DT),                         ,PROPERTY SERVICES,Fees - Land Registry,Trading Undertaking
Swale Borough Council,29UM,28/09/2016,1145061,114.00,LAND REGISTRY - (DT),                         ,REVENUE SERVICES,Fees - Land Registry,Central Services to the Public
Swale Borough Council,29UM,28/09/2016,1145061,3.00,LAND REGISTRY - (DT),                         ,REVENUE SERVICES,Fees - Land Registry,Central Services to the Public
Swale Borough Council,29UM,28/09/2016,1145061,242.00,LAND REGISTRY - (DT),                         ,PLANNING SERVICES,Fees - Land Registry,Planning and Development Services
Swale Borough Council,29UM,28/09/2016,1145061,78.00,LAND REGISTRY - (DT),                         ,PLANNING SERVICES,Fees - Land Registry,Planning and Development Services
Swale Borough Council,29UM,28/09/2016,1145061,6.00,LAND REGISTRY - (DT),                         ,HOUSING SERVICES,Fees - Land Registry,Housing
Swale Borough Council,29UM,28/09/2016,1145061,27.00,LAND REGISTRY - (DT),                         ,ENVIRONMENTAL RESPONSE TEAM,Fees - Land Registry,Internal Trading Cost Centres
Swale Borough Council,29UM,28/09/2016,1145061,15.00,LAND REGISTRY - (DT),                         ,PLANNING SERVICES,Fees - Land Registry,Internal Trading Cost Centres
Swale Borough Council,29UM,28/09/2016,1145061,20.00,LAND REGISTRY - (DT),                         ,EXCHEQUER,Fees - Land Registry,Internal Trading Cost Centres
Swale Borough Council,29UM,28/09/2016,1145061,21.00,LAND REGISTRY - (DT),                         ,LEISURE & OPEN SPACES,Fees - Land Registry,Cultural and Related Services
Swale Borough Council,29UM,28/09/2016,1145061,27.00,LAND REGISTRY - (DT),                         ,HOUSING SERVICES,Fees - Land Registry,Housing
Swale Borough Council,29UM,28/09/2016,1145061,54.00,LAND REGISTRY - (DT),                         ,HOUSING SERVICES,Fees - Land Registry,Housing
Swale Borough Council,29UM,28/09/2016,1144826,2646.00,LIBERTY PRINTERS LTD,2920033                  ,CAR PARKS,External Permit Printing,Highway and Transport Services
Swale Borough Council,29UM,28/09/2016,1144788,2483.57,LLOYDS BANK - (DT),                         ,FINANCIAL SERVICES,Bank Charges,Corporate & Democratic Core
Swale Borough Council,29UM,28/09/2016,1144802,1608.00,MACDONALD & COMPANY FREELANCE LTD,3882135                  ,PLANNING SERVICES,Agency/Contract Staff,Internal Trading Cost Centres
Swale Borough Council,29UM,28/09/2016,1145076,929163.00,MAIDSTONE BOROUGH COUNCIL - DT,                         ,FINANCIAL SERVICES,Tariff to Gvt,Taxation and Non-Specific Grant Income
Swale Borough Council,29UM,28/09/2016,1145077,929163.00,MAIDSTONE BOROUGH COUNCIL - DT,                         ,FINANCIAL SERVICES,Tariff to Gvt,Taxation and Non-Specific Grant Income
Swale Borough Council,29UM,28/09/2016,1144771,1628.00,MATCHTECH,4426336                  ,PLANNING SERVICES,Agency/Contract Staff,Internal Trading Cost Centres
Swale Borough Council,29UM,28/09/2016,1144969,1584.00,MATCHTECH,4426336                  ,PLANNING SERVICES,Agency/Contract Staff,Internal Trading Cost Centres
Swale Borough Council,29UM,28/09/2016,1145017,1409.20,MAYLOW CONSTRUCTION LTD,                         ,LEISURE & OPEN SPACES,Maintenance - Grounds,Cultural and Related Services
Swale Borough Council,29UM,28/09/2016,1144791,253.87,MDC EXPORTS LIMITED,                         ,ENVIRONMENTAL RESPONSE TEAM,Equipment Purchase,Environmental and Regulatory Services
Swale Borough Council,29UM,28/09/2016,1144871,525.00,MEDWAY INSULATIONS LIMITED,549740                   ,CONTRACT & PROCUREMENT,Buildings Maintenance,Environmental and Regulatory Services
Swale Borough Council,29UM,28/09/2016,1144595,3000.00,REDACTED PERSONAL INFORMATION,                         ,PLANNING SERVICES,Fees - Recovery of Legal Fees,Planning and Development Services
Swale Borough Council,29UM,28/09/2016,1144595,600.00,REDACTED PERSONAL INFORMATION,                         ,PLANNING SERVICES,Fees - Recovery of Legal Fees,Planning and Development Services
Swale Borough Council,29UM,28/09/2016,1145085,16.05,SAINSBURY'S,,DEMOCRATIC & ELECTORAL SERVICES,Catering Provisions,Internal Trading Cost Centres
Swale Borough Council,29UM,28/09/2016,1145085,72.08,HOLIDAY INN,,DEMOCRATIC & ELECTORAL SERVICES,Subsistence - Creditors,Corporate & Democratic Core
Swale Borough Council,29UM,28/09/2016,1145086,330.00,RICS,                         ,PROPERTY SERVICES,"Books, Journals & e - resources",Internal Trading Cost Centres
Swale Borough Council,29UM,28/09/2016,1145086,4.96,RICS,                         ,PROPERTY SERVICES,"Books, Journals & e - resources",Internal Trading Cost Centres
Swale Borough Council,29UM,28/09/2016,1145087,42.87,MOUNTAIN WAREHOUSE LTD,,EMERGENCY PLANNING,Equipment Purchase,Central Services to the Public
Swale Borough Council,29UM,28/09/2016,1145087,14.14,HALFORDS,,EMERGENCY PLANNING,Equipment Purchase,Central Services to the Public
Swale Borough Council,29UM,28/09/2016,1145087,16.23,HALFORDS,,EMERGENCY PLANNING,Equipment Purchase,Central Services to the Public
Swale Borough Council,29UM,28/09/2016,1145088,158.75,CILEX LAW SCHOOL,,HUMAN RESOURCES,Training - Courses,Corporate & Democratic Core
Swale Borough Council,29UM,28/09/2016,1145088,10.00,PROBATE SERVICE,,PROPERTY SERVICES,Fees And Services,Trading Undertaking
Swale Borough Council,29UM,28/09/2016,1145089,10.00,BARGAIN BOOZE,,HOUSING SERVICES,Gas,Housing
Swale Borough Council,29UM,28/09/2016,1145089,30.10,BARGAIN BOOZE,,HOUSING SERVICES,Water - Rateable Value,Housing
Swale Borough Council,29UM,28/09/2016,1145089,20.76,SITTINGBOURNE SHOES,,HOUSING SERVICES,General Maintenance,Housing
Swale Borough Council,29UM,28/09/2016,1145089,7.57,SCREWFIX,,HOUSING SERVICES,General Maintenance,Housing
Swale Borough Council,29UM,28/09/2016,1145089,16.74,SCREWFIX,,HOUSING SERVICES,General Maintenance,Housing
Swale Borough Council,29UM,28/09/2016,1145089,-3.41,SCREWFIX,,HOUSING SERVICES,General Maintenance,Housing
Swale Borough Council,29UM,28/09/2016,1145090,9.96,WICKES,                         ,HOUSING SERVICES,Staying Put - Materials,Housing
Swale Borough Council,29UM,28/09/2016,1145090,11.98,WICKES,                         ,HOUSING SERVICES,Staying Put - Materials,Housing
Swale Borough Council,29UM,28/09/2016,1145090,98.02,PREMIER TIMBER,                         ,HOUSING SERVICES,Staying Put - Materials,Housing
Swale Borough Council,29UM,28/09/2016,1145090,29.43,HOMEBASE,                         ,HOUSING SERVICES,Staying Put - Materials,Housing
Swale Borough Council,29UM,28/09/2016,1145090,63.27,ASDA,                         ,HOUSING SERVICES,Fuel For Contract Vehicles,Housing
Swale Borough Council,29UM,28/09/2016,1145090,76.16,BREWERS,                         ,HOUSING SERVICES,Staying Put - Materials,Housing
Swale Borough Council,29UM,28/09/2016,1145091,5.00,PAYBYPHONE PARKING,,MKIP LEGAL SERVICES,Car Park Fees,Internal Trading Cost Centres
Swale Borough Council,29UM,28/09/2016,1145091,5.70,PAYBYPHONE PARKING,,MKIP LEGAL SERVICES,Car Park Fees,Internal Trading Cost Centres
Swale Borough Council,29UM,28/09/2016,1145091,5.70,PAYBYPHONE PARKING,,MKIP LEGAL SERVICES,Car Park Fees,Internal Trading Cost Centres
Swale Borough Council,29UM,28/09/2016,1145091,5.70,PAYBYPHONE PARKING,,MKIP LEGAL SERVICES,Car Park Fees,Internal Trading Cost Centres
Swale Borough Council,29UM,28/09/2016,1145091,1.20,PAYBYPHONE PARKING,,MKIP LEGAL SERVICES,Car Park Fees,Internal Trading Cost Centres
Swale Borough Council,29UM,28/09/2016,1145091,5.80,PAYBYPHONE PARKING,,MKIP LEGAL SERVICES,Car Park Fees,Internal Trading Cost Centres
Swale Borough Council,29UM,28/09/2016,1145091,5.70,PAYBYPHONE PARKING,,MKIP LEGAL SERVICES,Car Park Fees,Internal Trading Cost Centres
Swale Borough Council,29UM,28/09/2016,1145091,5.70,PAYBYPHONE PARKING,,MKIP LEGAL SERVICES,Car Park Fees,Internal Trading Cost Centres
Swale Borough Council,29UM,28/09/2016,1145091,5.70,PAYBYPHONE PARKING,,MKIP LEGAL SERVICES,Car Park Fees,Internal Trading Cost Centres
Swale Borough Council,29UM,28/09/2016,1145091,5.70,PAYBYPHONE PARKING,,MKIP LEGAL SERVICES,Car Park Fees,Internal Trading Cost Centres
Swale Borough Council,29UM,28/09/2016,1145092,11.32,HEATING PLUMBING SUPPLIES,,CONTRACT & PROCUREMENT,Non-Planned Building Maintenance,Environmental and Regulatory Services
Swale Borough Council,29UM,28/09/2016,1145092,10.78,TOOLSTATION,,CONTRACT & PROCUREMENT,Non-Planned Building Maintenance,Environmental and Regulatory Services
Swale Borough Council,29UM,28/09/2016,1145093,23.29,THE COTTON BUNTING COMPANY,,LEISURE & OPEN SPACES,Swale in Bloom,Cultural and Related Services
Swale Borough Council,29UM,28/09/2016,1145093,59.54,CIMSPA,,LEISURE & OPEN SPACES,Officers Subscriptions,Internal Trading Cost Centres
Swale Borough Council,29UM,28/09/2016,1145093,68.55,CIMSPA,,LEISURE & OPEN SPACES,Officers Subscriptions,Internal Trading Cost Centres
Swale Borough Council,29UM,28/09/2016,1145094,88.62,OYEZ,,MKIP LEGAL SERVICES,"Books, Journals & e - resources",Internal Trading Cost Centres
Swale Borough Council,29UM,28/09/2016,1145042,551.58,ROWSON ELECTRICAL,                         ,HOUSING SERVICES,Housing Renovation Grants,Not used in this Structure
Swale Borough Council,29UM,28/09/2016,1144780,315.10,RSP RAIL TRAVEL ACCOUNT - (DT),                         ,FINANCIAL SERVICES,Travel Warrants (Staff Travel),Internal Trading Cost Centres
Swale Borough Council,29UM,28/09/2016,1145083,1080.00,SHEPPEY ESTATES,                         ,REVENUE SERVICES,Fees And Services,Housing
Swale Borough Council,29UM,28/09/2016,1145052,1191.80,SOUTH EAST BUILDING CO LTD,1786838                  ,HOUSING SERVICES,Housing Renovation Grants,Not used in this Structure
Swale Borough Council,29UM,28/09/2016,1144461,1862.22,SOUTH EAST WATER,2679874                  ,CONTRACT & PROCUREMENT,Water - Metered,Environmental and Regulatory Services
Swale Borough Council,29UM,28/09/2016,1144945,355.00,SOUTHERN LIGHTNING ENGINEERS LTD,2830426                  ,PROPERTY SERVICES,Service Contracts,Corporate & Democratic Core
Swale Borough Council,29UM,28/09/2016,1144303,2145.02,SOUTHERN WATER SERVICES LIMITED,2366670                  ,CONTRACT & PROCUREMENT,Water - Metered,Environmental and Regulatory Services
Swale Borough Council,29UM,28/09/2016,1144979,377.03,SOUTHERN WATER SERVICES LIMITED,2366670                  ,PROPERTY SERVICES,Water - Metered,Corporate & Democratic Core
Swale Borough Council,29UM,28/09/2016,1144979,655.55,SOUTHERN WATER SERVICES LIMITED,2366670                  ,PROPERTY SERVICES,Water - Metered,Corporate & Democratic Core
Swale Borough Council,29UM,28/09/2016,1144970,750.00,SWALE CVS,                         ,TOURISM & SPORTS DEVELOPMENT,Grants & Subscriptions,Cultural and Related Services
Swale Borough Council,29UM,28/09/2016,1144971,500.00,SWALE CVS,                         ,TOURISM & SPORTS DEVELOPMENT,Grants & Subscriptions,Cultural and Related Services
Swale Borough Council,29UM,28/09/2016,1144827,2145.60,THE JOHN WOODWARD PARTNERSHIP,                         ,PLANNING SERVICES,Fees And Services,Planning and Development Services
Swale Borough Council,29UM,28/09/2016,1145047,1465.83,TLC STAIRLIFTS LTD,OC337646                 ,HOUSING SERVICES,Housing Renovation Grants,Not used in this Structure
Swale Borough Council,29UM,28/09/2016,1145006,1520.00,TOP 2 BOTTOM LTD,4522006                  ,LEISURE & OPEN SPACES,Equipment Maintenance,Cultural and Related Services
Swale Borough Council,29UM,28/09/2016,1144896,900.00,VENN GROUP LIMITED,                         ,MKIP LEGAL SERVICES,Agency/Contract Staff,Internal Trading Cost Centres
Swale Borough Council,29UM,28/09/2016,1144897,1230.00,VENN GROUP LIMITED,                         ,MKIP LEGAL SERVICES,Agency/Contract Staff,Internal Trading Cost Centres
Swale Borough Council,29UM,28/09/2016,1145022,250.00,WEED MANAGEMENT LTD,4321175                  ,LEISURE & OPEN SPACES,Grounds Contract Variations,Cultural and Related Services
Swale Borough Council,29UM,28/09/2016,1144674,521.39,WHISTL UK LIMITED,04417047                 ,REVENUE SERVICES,Postage,Central Services to the Public
Swale Borough Council,29UM,28/09/2016,1144674,30.52,WHISTL UK LIMITED,04417047                 ,PLANNING SERVICES,Postage,Planning and Development Services
Swale Borough Council,29UM,28/09/2016,1144674,260.70,WHISTL UK LIMITED,04417047                 ,REVENUE SERVICES,Postage,Housing
Swale Borough Council,29UM,28/09/2016,1144674,13.17,WHISTL UK LIMITED,04417047                 ,LEISURE & OPEN SPACES,Postage,Internal Trading Cost Centres
Swale Borough Council,29UM,28/09/2016,1144674,13.29,WHISTL UK LIMITED,04417047                 ,CAR PARKS,Postage,Internal Trading Cost Centres
Swale Borough Council,29UM,28/09/2016,1144674,2.71,WHISTL UK LIMITED,04417047                 ,ENVIRONMENTAL RESPONSE TEAM,Postage,Internal Trading Cost Centres
Swale Borough Council,29UM,28/09/2016,1144674,0.31,WHISTL UK LIMITED,04417047                 ,ECONOMIC DEVELOPMENT,Postage,Internal Trading Cost Centres
Swale Borough Council,29UM,28/09/2016,1144674,60.67,WHISTL UK LIMITED,04417047                 ,PROPERTY SERVICES,Postage,Holding Codes
Swale Borough Council,29UM,28/09/2016,1144674,247.74,WHISTL UK LIMITED,04417047                 ,DEMOCRATIC & ELECTORAL SERVICES,Postage,Central Services to the Public
Swale Borough Council,29UM,28/09/2016,1145043,438.00,WILLOW TREE HOME SOLUTIONS LTD,                         ,HOUSING SERVICES,Housing Renovation Grants,Not used in this Structure
Swale Borough Council,29UM,28/09/2016,1145044,4920.30,WILLOW TREE HOME SOLUTIONS LTD,                         ,HOUSING SERVICES,Housing Renovation Grants,Not used in this Structure
Swale Borough Council,29UM,28/09/2016,1145045,578.34,WILLOW TREE HOME SOLUTIONS LTD,                         ,HOUSING SERVICES,Housing Renovation Grants,Not used in this Structure
Swale Borough Council,29UM,28/09/2016,1145046,6674.60,WILLOW TREE HOME SOLUTIONS LTD,                         ,HOUSING SERVICES,Housing Renovation Grants,Not used in this Structure
Swale Borough Council,29UM,28/09/2016,1145082,4884.06,WORLDPAY (DT),07316500                 ,REVENUE SERVICES,Commission Paid,Central Services to the Public
Swale Borough Council,29UM,28/09/2016,1145082,341.75,WORLDPAY (DT),07316500                 ,REVENUE SERVICES,Commission Paid,Central Services to the Public
Swale Borough Council,29UM,28/09/2016,1145082,34.49,WORLDPAY (DT),07316500                 ,REVENUE SERVICES,Commission Paid,Housing
Swale Borough Council,29UM,28/09/2016,1145082,64.67,WORLDPAY (DT),07316500                 ,EXCHEQUER,Commission Paid,Internal Trading Cost Centres
Swale Borough Council,29UM,28/09/2016,1145082,935.39,WORLDPAY (DT),07316500                 ,EXCHEQUER,Commission Paid,Internal Trading Cost Centres
Swale Borough Council,29UM,28/09/2016,1145082,440.85,WORLDPAY (DT),07316500                 ,EXCHEQUER,Commission Paid,Internal Trading Cost Centres
Swale Borough Council,29UM,28/09/2016,1145082,9.99,WORLDPAY (DT),07316500                 ,ICT,Fees And Services,Internal Trading Cost Centres
